Workbook

Sheet Anexo II -A
A1: MUNICÍPIO DE SANTO CRISTO
A2: LEI ORÇAMENTÁRIA ANUAL PARA 2023
A3: Anexo II - A - DEMONSTRATIVO DA EVOLUÇÃO DA RECEITA POR FONTES
A5: (LRF Art. 12) Especificação | B5: Arrecadado 2021 | C5: Arrecadado 2022 | D5: % 2022/ 2021 | E5: Reestimado 2023 | F5: % 2023/ 2022 | G5: Prevista 2024 | H5: % 2024/ 2023 | I5: % análise vertical | J5: Projetado 2025 | K5: % 2025/ 2024 | L5: Projetado 2026 | M5: % 2026/ 2025
A6: RECEITAS CORRENTES | B6: =SUM(B7:B12) -> 73717476.73 | C6: =SUM(C7:C12) -> 88193083.43 | D6: =C6/B6 -> 1.196366009 | E6: =SUM(E7:E12) -> 95944977.99 | F6: =E6/C6 -> 1.087896854 | G6: =SUM(G7:G12) -> 103954150 | H6: =G6/E6 -> 1.083476719 | I6: =(G6+G24)/G25*100 -> 85.53504792 | J6: =SUM(J7:J12) -> 104578604 | K6: =J6/G6 -> 1.006007013 | L6: =SUM(L7:L12) -> 108527262.8 | M6: =L6/J6 -> 1.037757808
A7: Impostos, Taxas e Contribuição de Melhoria | B7: 10397276.89 | C7: 12555275.27 | D7: 1.20755419 | E7: 13898676.46 | F7: 1.106998944 | G7: 15483000 | H7: =G7/E7 -> 1.113990965 | I7: =G7/G25*100 -> 14.24139266 | J7: 16857953.14 | K7: 1.088804052 | L7: 18073529.25 | M7: 1.072106981
A8: Receita de Contribuições | B8: 2639690.72 | C8: 3009403.08 | D8: 1.140058969 | E8: 3228533.07 | F8: 1.072815101 | G8: 3878000 | H8: =G8/E8 -> 1.201164713 | I8: =G8/G25*100 -> 3.567016776 | J8: =809921.58+3485450.16 -> 4295371.74 | K8: 1.107625513 | L8: 4704305.77 | M8: 1.095203408
A9: Receita Patrimonial | B9: 1588231.07 | C9: 8189556.05 | D9: 5.156400857 | E9: 10131850.2 | F9: 1.237167209 | G9: 8686700 | H9: =G9/E9 -> 0.8573656172 | I9: =G9/G25*100 -> 7.990099183 | J9: =3807254.44+5212676.06 -> 9019930.5 | K9: 1.038361 | L9: =5423268.17+3961067.52 -> 9384335.69 | M9: 1.0404
A10: Receita de Serviços | B10: 1420674.59 | C10: 1492098.86 | D10: 1.050274898 | E10: 1824102.84 | F10: 1.222508031 | G10: 1498050 | H10: =G10/E10 -> 0.8212530386 | I10: =G10/G25*100 -> 1.377918897 | J10: 1555516.7 | K10: 1.038361003 | L10: 1618359.57 | M10: 1.040399997
A11: Transferências Correntes | B11: 57281341.58 | C11: 62652049.32 | D11: 1.09376016 | E11: 66534372.57 | F11: 1.061966421 | G11: 74264650 | H11: 1.11618472 | I11: =(G11+G24)/G25*100 -> 58.22639795 | J11: 72703350.62 | K11: 0.978976547 | L11: 74597321.62 | M11: 1.02605067
A12: Outras Receitas Correntes | B12: 390261.88 | C12: 294700.85 | D12: 0.7551361409 | E12: 327442.85 | F12: 1.111102496 | G12: 143750 | H12: 0.4390079063 | I12: =G12/G25*100 -> 0.1322224501 | J12: =132215.25+14266 -> 146481.25 | K12: 1.019 | L12: =134859.56+14551.32 -> 149410.88 | M12: 1.020000034
A13: RECEITA DE CAPITAL | B13: =B15+B16+B17+B18+B14 -> 627964.53 | C13: =C15+C16+C17+C18+C14 -> 3426699.81 | D13: 5.456836567 | E13: =SUM(E14:E18) -> 2762381.58 | F13: 0.8061346874 | G13: =SUM(G14:G18) -> 1670550 | H13: 0.6047499057 | I13: =G13/G25*100 -> 1.536585837 | J13: =SUM(J14:J18) -> 1710848.98 | K13: 1.024123181 | L13: =SUM(L14:L18) -> 1754429.71 | M13: 1.02547316
A14: Operações de Crédito | D14: 1 | E14: 0 | F14: 0 | G14: 0 | H14: 0 | I14: 0 | J14: ='Anexo II -A'!N14 -> 0 | K14: 0 | L14: 0 | M14: 0
A15: Alienação de Bens | B15: 35000 | C15: 497050 | D15: =C15/B15 -> 14.20142857 | E15: 76200 | F15: =E15/C15 -> 0.1533044965 | G15: 720000 | H15: 9.448818898 | I15: =G15/G25*100 -> 0.6622620111 | J15: 733680 | K15: =J15/G15 -> 1.019 | L15: 748353.6 | M15: =L15/J15 -> 1.02
A16: Amortização de Empréstimos | B16: 195982.29 | C16: 149310.82 | D16: 0 | E16: 311931.51 | F16: 0 | G16: 302300 | H16: 0 | I16: =G16/G25*100 -> 0.2780580638 | J16: 308043.7 | K16: 1.019 | L16: 314204.57 | M16: 1.019999987
A17: Transferências de Capital | B17: 361868.41 | C17: 2567690.92 | D17: 7.095648167 | E17: 2171606 | F17: 0.8457427579 | G17: 442050 | H17: =G17/E17 -> 0.203559025 | I17: 4.03 | J17: 459007.48 | K17: 1.038361 | L17: 477551.38 | M17: 1.040399995
A18: Outras Receitas de Capital | B18: 35113.83 | C18: 212648.07 | D18: 6.05596342 | E18: 202644.07 | F18: 0.9529551338 | G18: 206200 | H18: 1.017547664 | I18: =G18/G25*100 -> 0.1896644815 | J18: 210117.8 | K18: 1.019 | L18: 214320.16 | M18: 1.020000019
A19: REC. CORRENTES - INTRA-ORÇAMEN | B19: =B20 -> 6873899.51 | C19: 7898354.58 | D19: 1 | E19: 10194827.91 | F19: 0 | G19: 14055500 | H19: 1.378689285 | I19: =G19/G25*100 -> 12.92836625 | J19: =J20 -> 14322554.5 | K19: 1.019 | L19: =L20 -> 14609005.59 | M19: 1.02
A20: Receitas de Contribuições - Intra-Orç | B20: 6873899.51 | C20: 7898354.58 | D20: 1 | E20: 10194827.91 | F20: 0 | G20: 14055500 | H20: 1.378689285 | I20: =G20/G25*100 -> 12.92836625 | J20: 14322554.5 | K20: 1.019 | L20: 14609005.59 | M20: 1.02
A21: REC. CAPITAL - INTRA-ORÇAMEN | B21: 0 | C21: 0 | D21: 0 | E21: 0 | F21: 0 | G21: =G22 -> 0 | H21: 0 | I21: =G21/G25*100 -> 0 | J21: 0 | L21: 0
A22: Alienação de Bens | B22: 8827.97 | C22: 0 | D22: 0 | E22: 0 | F22: 0 | G22: 0 | H22: 0 | I22: =G22/G25*100 -> 0 | J22: 0 | L22: 0
A23: TOTAL BRUTO | B23: =B6+B13+B19+B21 -> 81219340.77 | C23: =C6+C13+C19 -> 99518137.82 | D23: =C23/B23 -> 1.22530098 | E23: =E6+E13+E19 -> 108902187.5 | F23: =E23/C23 -> 1.094294868 | G23: =G6+G13+G19+G21 -> 119680200 | H23: 1.09896966 | J23: 120612007.4 | K23: 1.007785811 | L23: 124890698.1 | M23: 1.035474832
A24: (-) DEDUÇÃO DA RECEITA | B24: -8237134 | C24: -8794206.5 | D24: 1.067629408 | E24: -9303752.44 | F24: 1.057941093 | G24: -10961900 | H24: 1.178223525 | J24: -11141987.8 | K24: 1.016428521 | L24: -11478245.95 | M24: 1.030179368
A25: TOTAL LÍQUIDO | B25: =B23+B24+B22 -> 72991034.74 | C25: =C23+C24+C22 -> 90723931.32 | D25: 1.242946228 | E25: =E23+E24+E22 -> 99598435.04 | F25: 1.097818774 | G25: =G23+G24 -> 108718300 | H25: 1.091566348 | J25: =J23+J24 -> 109470019.6 | K25: 1.00691438 | L25: =L23+L24 -> 113412452.1 | M25: 1.03601381
A30: Adair Philippsen | C30: Simone Diel Kaefer
A31: Prefeito Municipal | C31: Contadora
A32: CPF: 220.674.500-34 | C32: CRC/RS 056.450/0-9

Sheet Anexo IV
A1: MUNICÍPIO DE SANTO CRISTO
A2: LEI ORÇAMENTÁRIA ANUAL PARA 2024
A3: Anexo IV - DEMONSTRATIVO DA RECEITA POR FONTES E DA DESPESA POR GRUPO DE
A4: NATUREZA DE DESPESA - ORÇAMENTO FISCAL E DA SEGURIDADE SOCIAL
A6: RECEITAS
A7: Especificação | B7: Orçamento Fiscal | C7: Seguridade Social | D7: Total
A8: RECEITAS CORRENTES | B8: =SUM(B9:B14) -> 81116275 | C8: =SUM(C9:C14) -> 22837875 | D8: =SUM(D9:D14) -> 103954150
A9: Receita de Impostos, Taxas e CM | B9: =15483000-C9 -> 13550700 | C9: =1887300+45000 -> 1932300 | D9: =B9+C9 -> 15483000
A10: Receita de Contribuições | B10: =3878000-C10 -> 780000 | C10: 3098000 | D10: =B10+C10 -> 3878000
A11: Receita Patrimonial | B11: =8686700-C11 -> 3084200 | C11: =150000+100000+250000+100+10000+12000+2000+5000+2000+12000+3000+4000+13000+2000+5000000+20000+100+1300+16000 -> 5602500 | D11: =B11+C11 -> 8686700
A12: Receita de Serviços | B12: =1498050-C12 -> 1498050 | C12: 0 | D12: 1498050
A13: Transferências Correntes | B13: =74264650-C13 -> 62073575 | C13: =7857525+1968000+386400+1069600+85600+15700+755500+35250+15000+2500 -> 12191075 | D13: 74264650
A14: Outras Receitas Correntes | B14: =143750-C14 -> 129750 | C14: 14000 | D14: 143750
A15: OPER. INTRA-ORÇ CORRENTES | B15: =B16 -> 0 | C15: =C16 -> 14055500 | D15: 14055500
A16: Contribuições Previd. RPPS | B16: =14055500-C16 -> 0 | C16: 14055500 | D16: 14055500
A17: RECEITA DE CAPITAL | B17: =SUM(B18:B22) -> 1622350 | C17: =SUM(C18:C22) -> 48200 | D17: 1670550
A18: Operações de Crédito | D18: 0
A19: Alienação de Bens | B19: =720000-C19 -> 720000 | C19: 0 | D19: 720000
A20: Amortização de Empréstimos | B20: =302300-C20 -> 302300 | C20: 0 | D20: 302300
A21: Transferências de Capital | B21: =442050-C21 -> 442050 | C21: 0 | D21: 442050
A22: Outras Receitas de Capital | B22: =206200-C22 -> 158000 | C22: =700+1000+40000+6500 -> 48200 | D22: 206200
A23: REC. DE CAPITAL INTRA-ORÇAMENTÁRIA | B23: 0 | C23: 0 | D23: 0
A24: Alienação de Bens | D24: 0
A25: (-) Deduções da Receita | B25: =-10961900-C25 -> -10960800 | C25: -1100 | D25: -10961900
D26: 0
A27: TOTAL | B27: =B8+B15+B17+B25+B23 -> 71777825 | C27: =C8+C15+C17+C25+C23 -> 36940475 | D27: 108718300
A30: DESPESAS
A31: Especificação | B31: Orçamento Fiscal | C31: Seguridade Social | D31: Total
A32: DESPESAS CORRENTES | B32: =SUM(B33:B37) -> 58060930 | C32: =SUM(C33:C37) -> 31276350 | D32: =SUM(D33:D37) -> 89337280
A33: Pessoal e Encargos Sociais | B33: =59640388-14055500-C33 -> 24808100 | C33: =12725000+657100+10162688-C34 -> 20776788 | D33: =B33+C33 -> 45584888
A34: Pes. e Encarg. Sociais - Oper. Intra-Orç | B34: =14055500-C34 -> 11287500 | C34: =2628000+140000 -> 2768000 | D34: 14055500
A35: Juros e Encargos da Dívida | B35: 0 | C35: 0 | D35: 0
A36: Outras Despesas Correntes | B36: =29696892-C36 -> 21965330 | C36: =7214512+481950+35100 -> 7731562 | D36: 29696892
A37: Outras Despesas Correntes - intra-Orç | B37: 0 | C37: 0 | D37: 0
A38: DESPESAS DE CAPITAL | B38: =SUM(B39:B42) -> 9748220 | C38: =SUM(C39:C42) -> 195300 | D38: 9943520
A39: Investimentos | B39: =9640520-C39 -> 9445220 | C39: =157700+37600 -> 195300 | D39: 9640520
A40: Inversões Financeiras | B40: 303000 | C40: 0 | D40: 303000
A41: Amortização da Dívida | B41: 0 | C41: 0 | D41: 0
A42: desp capital - Oper. Intra-Orç | B42: 0
A43: Reserva do RPPS | B43: 0 | C43: 9427500 | D43: =B44+C43 -> 9437500
A44: Reserva da Prefeitura | B44: 10000 | C44: 0
A45: TOTAL | B45: =B32+B38+B44+B43 -> 67819150 | C45: =C32+C38+C43 -> 40899150 | D45: =D32+D38+D43 -> 108718300
A48: Adair Philippsen | C48: Simone Diel Kaefer
A49: Prefeito Municipal | C49: Contadora
A50: CPF: 220.674.500-34 | C50: CRC/RS 056.450/0-9

Sheet Anexo V
A1: MUNICÍPIO DE SANTO CRISTO
A2: LEI ORÇAMENTÁRIA ANUAL PARA 2024
A3: Anexo V - DEMONSTRATIVO DAS RECEITAS E DESPESAS VINCULADAS AO
A4: FUNDO DE PREVIDÊNCIA SOCIAL DO MUNICÍPIO DE SANTO CRISTO - RPPS
A6: RECEITAS PREVISTAS | C6: DESPESAS FIXADAS
A7: Especificação | B7: Valor | C7: Especificação | D7: Valor
A8: RECEITAS CORRENTES | B8: =SUM(B9:B14) -> 8132100 | C8: DESPESAS CORRENTES | D8: =SUM(D9:D11) -> 12760100
A9: Receita Tributárias | B9: 0 | C9: Pessoal e Encargos Sociais | D9: 12725000
A10: Receita de Contribuições | B10: 3098000 | C10: Juros e Encargos da Dívida | D10: 0
A11: Receita Patrimonial | B11: 5020100 | C11: Outras Despesas Correntes | D11: 35100
A12: Receita de Serviços | B12: 0 | C12: DESPESAS DE CAPITAL | D12: 0
A13: Transferências Correntes | B13: 0 | C13: Investimentos | D13: 0
A14: Outras Receitas Correntes | B14: 14000 | C14: Amortização da Dívida | D14: 0
A15: OPER. INTRA-ORÇ. CORRENTES | B15: =B16 -> 14055500
A16: Contribuições Previd. do RPPS | B16: 14055500
A17: RECEITA DE CAPITAL | B17: 0
A18: Operações de Crédito | B18: 0 | C18: Reserva de Contingência | D18: 9427500
A19: Alienação de Bens | B19: 0
A20: Transferências de Capital | B20: 0
A21: Outras Receitas de Capital | B21: 0
A23: TOTAL | B23: =B8+B15 -> 22187600 | C23: TOTAL | D23: =D8+D18 -> 22187600
A29: Adair Philippsen | C29: Simone Diel Kaefer
A30: Prefeito Municipal | C30: Contadora
A31: CPF: 220.674.500-34 | C31: CRC/RS 056.450/0-9

Sheet Anexo VI -Metas Fiscais
A1: MUNICÍPIO DE SANTO CRISTO
A2: LEI ORÇAMENTÁRIA ANUAL PARA 2024
A3: Anexo VI -DEMONSTRATIVO DA COMPATIBILIDADE DO ORÇAMENTO
A4: COM AS METAS FISCAIS
A5: (LRF Art. 5º, Inciso I)
A10: ESPECIFICAÇÃO | B10: METAS FISCAIS FIXADAS NA LDO PARA 2024 | C10: VALORES PREVISTOS NA LEI DE ORÇAMENTO PRA 2024
A11: Receitas Correntes-Exceto RPPS | B11: =87222062.24-2609157.41 -> 84612904.83 | C11: =95822050-10689600 -> 85132450
A12: (-)Aplicações Financeiras em geral | B12: -3059330.63 | C12: -3663600
A13: (-)Outras Receitas Financeiras | B13: 0 | C13: 0
A14: Receitas Correntes-Exceto RPPS (I) | B14: =B11+B12 -> 81553574.2 | C14: =C11+C12 -> 81468850
A16: Receitas de Capital-Exceto RPPS | B16: 2609157.406 | C16: =1670550-272300 -> 1398250
A17: (-) Operações de Crédito | B17: 0 | C17: 0
A18: (-) Amortização de Empréstimos | B18: -253405.91 | C18: =-302300 -> -302300
A19: (-) Alienação de Investimentos Temporários | B19: 0 | C19: 0
A20: (-) Outras Receitas de Capital- não primárias | B20: -170064.32 | C20: -206200
A21: Receitas de Capital-Exceto RPPS (II) | B21: =B16+B18+B20+0.01 -> 2185687.186 | C21: =C16+C18+C20 -> 889750
A22: Receita Primárias Totais(III=I+II) | B22: =B14+B21-0.02 -> 83739261.37 | C22: =C14+C21 -> 82358600
A24: Despesas Correntes-Exceto RPPS | B24: =87222062.24-17973112.93-100000 -> 69148949.31 | C24: =76577180 -> 76577180
A25: (-) Juros e Encargosa da Dívida
A26: Despesas Correntes-Exceto (IV) | B26: =B24+B25 -> 69148949.31 | C26: =C24+C25 -> 76577180
A28: Despesas de Capital-Exceto intraorçamentárias | B28: 17973112.93 | C28: 9943520
A29: (-) Concessão e Empréstimos e Financiamentos | B29: -200954.85 | C29: -303000
A30: (-) Aquisição de Capital já integralizado
A31: (-) Aquisição de Títulos de Crédito
A32: (-) Amortização da Dívida
A33: Despesas Prímarias de Capital (V) | B33: =B28+B29+B32 -> 17772158.08 | C33: =C28+C29+C32 -> 9640520
A34: Despesas Primárias Totais (VI=IV+V) | B34: =B26+B33 -> 86921107.39 | C34: =C26+C33 -> 86217700
A35: Despesas Primárias após reserva de contigência | B35: =B34 -> 86921107.39 | C35: =C34 -> 86217700
A37: Resultado Primário ACIMA DA LINHA | B37: =B22-B35 -> -3181846.027 | C37: =C22-C35 -> -3859100
A42: Adair Philippsen | C42: Simone Diel Kaefer
A43: Prefeito Municipal | C43: Contadora
A44: CPF: 220.674.500-34 | C44: CRC/RS 056.450/0-9

Sheet Anexo VII
A1: MUNICÍPIO DE SANTO CRISTO
A2: LEI ORÇAMENTÁRIA ANUAL PARA 2024
A3: Anexo VII - DEMONSTRATIVO DE GASTOS COM PESSOAL E ENCARGOS SOCIAIS EM
A4: RELAÇÃO À RECEITA CORRENTE LÍQUIDA PREVISTA
A6: Especificação das Receitas | B6: Previsão 2024
A7: RECEITAS CORRENTES | B7: 103954150
A8: (R) Dedução das Receitas Corentes | B8: 10689600
A9: (-) Contribuições Sociais Específicas de Estados, DF e Municípios (RPPS) | B9: 3098000
A10: (-) Compensação Previdenciária entre o RGPS e o RPPS | B10: 14000
A11: (-) Remuneração dos Recursos do RPPS | B11: 5020100
A12: (-) Outras Receitas Diretamente Arrecadadas pelo RPPS | B12: 0
A13: (-) Remuneração de Depósitos Bancários de Recursos Vinculados - Fundo de Assistência dos Servidores | B13: 0
A14: (-) Receita Diretamente Arrecadada pelo Fundo de Assistência dos Servidores | B14: 0
A15: (-) Remuneração de Depósitos Bancários de Recursos Vinculados - Fundo de Assistência à Saúde dos Servidores | B15: 0
A16: (-) Receita Diretamente Arrecadada pelo Fundo de Assistência à Saúde dos Servidores | B16: 0
A17: (+) Ajuste - Previsão de perda para o FUNDEB | B17: 0
A18: (=) Receita Corrente Líquida Prevista (RCL) | B18: =B7-SUM(B8+B9+B11+B10+B12+B13)+B17 -> 85132450
A19: (-) Transferências de Recursos de Emendas Parlamentares Individuais | B19: 0
A20: (=) Receita Corrente Líquida Prevista Para Fins de Limite de Endividamento | B20: =B18-B19 -> 85132450
A21: (-) Transferências de Recursos de Emendas Parlamentares de Bancada | B21: 0
A22: (=) Receita Corrente Líquida Prevista Para Fins de Limite de Gastos com Pessoal | B22: =B20-B21 -> 85132450
A24: Limite Legal para Despesas de Pessoal do Executivo (54% s/ RCL) | B24: =B18*54% -> 45971523
A25: Limite Prudencial para Despesa de Pessoal do Executivo (51,30% s/ a RCL) | B25: =B18*51.3% -> 43672946.85
A27: Limite Legal para Despesas de Pessoal do Legislativo (6% s/ RCL) | B27: =B18*6% -> 5107947
A28: Limite Prudencial para Despesa de Pessoal do Legislativo (5,70% s/ RCL) | B28: =B18*5.7% -> 4852549.65
A31: Especificação das Despesas | B31: Despesa do Executivo 2024 | C31: Despesa do Legislativo 2024
A32: Total das Despesas com Pessoal e Encargos Sociais | B32: =59640388-C32 -> 58899788 | C32: 740600
A33: (-) Inativos e Pensionistas (Recursos do RPPS) | B33: =10540000+2115000 -> 12655000
A34: (-)Sentenças Judiciais de Exercícios Anteriores | B34: 360000
A35: (-) Despesas de pessoal de Exercícios Anteriores
A36: (-) Outras Deduções da Despesa com Pessoal | B36: 144200 | C36: 100
A37: (=) Despesa com Pessoal Prevista | B37: =B32-SUM(B33:B36) -> 45740588 | C37: =C32-SUM(C33:C36) -> 740500
A39: DESPESA DE PESSOAL COM BASE NA PREVISÃO DA RCL (%) | B39: =B37/B18*100 -> 53.72873446 | C39: =C37/B18*100 -> 0.8698210847
A46: Adair Philippsen Simone Diel Kaefer
A47: Prefeito Municipal Contadora
A48: CPF: 220.674.500-34 CRS 56.450/0-9

Sheet Anexo VIII - MDE
A1: MUNICÍPIO DE SANTO CRISTO
A2: LEI ORÇAMENTÁRIA ANUAL PARA 2024
A3: Anexo VIII - DEMONSTRATIVO DA PREVISÃO DE APLICAÇÃO DE RECURSOS NA
A4: MANUTENÇÃO E DESENVOLVIMENTO DO ENSINO
A5: (art. 212 da Constiuição Federal)
A6: RECEITAS POR FONTES | D6: DESPESAS POR FUNÇÃO
A7: Especificação | B7: Previsão | C7: 0.3 | D7: Especificação | E7: Gastos MDE / FUNDEB
A8: I P T U | B8: 2680000 | C8: =B8*30% -> 804000 | D8: EDUCAÇÃO (MDE) | E8: 17008200
A9: I T B I | B9: 1200000 | C9: =B9*30% -> 360000 | D9: EDUCAÇÃO (FUNDEB) | E9: =C26 -> 12402000
A10: I S S Q N | B10: 5000000 | C10: =B10*30% -> 1500000
A11: I R R F | B11: 3702000 | C11: =B11*30% -> 1110600
A12: FPM | B12: 28460000 | C12: =B12*10%+2660000*20% -> 3378000
A13: ITR | B13: 1500 | C13: =B13*10% -> 150
A14: ICMS | B14: 21100000 | C14: =B14*10% -> 2110000
A15: IPVA | B15: 4437000 | C15: =B15*10% -> 443700
A16: IPI/EXPORTAÇÃO | B16: 245000 | C16: =B16*10% -> 24500
A17: COMPENSAÇÃO ICMS - LC 194/2022 | B17: 800000 | C17: =B17*10% -> 80000
A18: (-) Deduções impostos | B18: -123000 | C18: =B18*30% -> -36900
A19: SUB-TOTAL | B19: =SUM(B8:B18) -> 67502500 | C19: =SUM(C8:C18) -> 9774050
A20: RETORNO DO FUNDEB | B20: 12367000
A21: (-)Contribuição para o FUNDEB | B21: =-(SUM(B13:B17)+25800000)*0.2 -> -10476700
A22: PLUS DO FUNDEB | B22: =SUM(B20:B21) -> 1890300 | C22: =C19 -> 9774050 | D22: TOTAL FIXADO | E22: =E8+E9 -> 29410200
A23: Rendimentos Aplicação MDE | C23: 700000
A24: Total MDE | C24: =C22+C23 -> 10474050
A25: Rendimentos do FUNDEB | C25: 35000
A26: Total FUNDEB | C26: =B20+C25 -> 12402000
A27: TOTAL GERAL DA RECEITA MDE E FUNDEB | C27: =C24+C26 -> 22876050
A29: O valor da despesa, excedente será comportado com recursos próprios
A32: Adair Philippsen | C32: Simone Diel Kaefer
A33: Prefeito Municipal | C33: Contadora
A34: CPF: 220.674.500-34 | C34: CRC/RS 056.450/0-9

Sheet Anexo IX - ASPS
A1: MUNICÍPIO DE SANTO CRISTO
A2: LEI ORÇAMENTÁRIA ANUAL PARA 2024
A3: Anexo IX - DEMONSTRATIVO DA PREVISÃO DE APLICAÇÃO DE RECURSOS
A4: EM AÇÕES E SERVIÇOS PÚBLICOS DE SAÚDE
A5: (art. 198 da Constiuição Federal)
A6: RECEITAS POR FONTES | D6: DESPESAS POR FUNÇÃO
A7: Especificação | B7: Previsão | C7: 0.15 | D7: Especificação | E7: GASTOS ASPS
A8: I P T U | B8: 2680000 | C8: =B8*$C$7 -> 402000 | D8: Saúde | E8: 12667900
A9: I T B I | B9: 1200000 | C9: =B9*$C$7 -> 180000
A10: I S S Q N | B10: 5000000 | C10: 750000
A11: I R R F | B11: 3702000 | C11: 555300
A12: FPM | B12: 25800000 | C12: 3870000
A13: ITR | B13: 1500 | C13: 225
A14: ICMS | B14: 21100000 | C14: 3165000
A15: IPVA | B15: 4437000 | C15: 665550
A16: IPI/EXPORTAÇÃO | B16: 245000 | C16: 36750
A17: COMPENSAÇÃO ICMS - LC 194/2022 | B17: 800000 | C17: 120000
A18: (-) Deduções de Impostos e juros | B18: -123000 | C18: -18450
A19: BASE DE CÁLCULO /MÍNIMO A APLICAR | B19: =SUM(B8:B18) -> 64842500 | C19: =SUM(C8:C18) -> 9726375 | D19: TOTAL FIXADO | E19: =SUM(E8:E16) -> 12667900
A20: Rendimentos de Aplicação ASPS | C20: 100
A21: TOTAL GERAL DA RECEITA - ASPS | C21: =SUM(C19:C20) -> 9726475
A23: O valor da despesa, excedente será comportado com recursos próprios
A26: Adair Philippsen | C26: Simone Diel Kaefer
A27: Prefeito Municipal | C27: Contadora
A28: CPF: 220.674.500-34 | C28: CRC/RS 056.450/0-9

Sheet Anexo X -DP legisl CF art 2
A1: MUNICÍPIO DE SANTO CRISTO
A2: LEI ORÇAMENTÁRIA ANUAL PARA 2024
A3: Anexo X - DEMONSTRATIVO DO CÁLCULO DO LIMITE MÁXIMO PARA AS DESPESAS DO
A4: PODER LEGISLATIVO EM 2023
A5: (Art. 29-A da Constituição Federal e Art. 12, § 2º da LDO)
A7: RECEITAS
A8: Receita Efetivamente Arrecadada no Exercício Anterior | B8: reestimado 2023
A9: 1.1.0.0.00.0.0.00- Impostos | B9: 13898676.46
A10: 1.2.1.0.04.0.0.00- Contribuição do Serv Ativo Civil para RPPS | B10: 2463794.1
A11: 1.2.4.0.00.0.0.00 - Contribuição p/ Custeio da Iluminação Pública | B11: 764738.97
A12: 1.7.1.8.01.2.0.00 - Cota-Parte do FPM | B12: 22834406
A13: 1.7.1.8.11.5.0.00- Cota-Parte do ITR | B13: 12000
A14: 1.7.2.8.01.1.0.00- Cota-Parte do ICMS | B14: 18412585
A15: 1.7.2.8.01.2.0.00- Cota-Parte do IPVA | B15: 3688687
A16: 1.7.2.8.01.3.0.00 - Cota-Parte do IPI /EXP | B16: 192415
A17: 1.7.2.2.01.4.0.00 - Cota-Parte do CIDE | B17: 126.24
A18: SOMA | B18: =SUM(B9:B17) -> 62267428.77
A22: ESTIMATIVA DO LIMITE MÁXIMO DE GASTOS DO LEGISLATIVO
A24: Valor previsto para a Receita Efetivamente Arrecadada no Exercício Anterior | C24: R$ | D24: =B18 -> 62267428.77
A25: População do Município | C25: Habitantes | D25: *14216
A26: Limite Máximo Permitido cfe. Art. 29-A da Constituição Federal | C26: 7 % RREA | D26: =D24*7% -> 4358720.014
A27: Valor máximo para as despesas com folha de pagamento do Poder Legislativo em 2023 (70% s/ 7%) | C27: R$ | D27: =D26*70% -> 3051104.01
A28: * Número de habitantes constante do PAD TCE
A34: Adair Philippsen | B34: Simone Diel Kaefer
A35: Prefeito Municipal | B35: Contadora
A36: CPF: 220.674.500-34 | B36: CRC/RS 056.450/0-9

Sheet Renúncia (2)
A1: =[1]Parâmetros!A7 -> Município de : Santo Cristo-RS
A2: LEI ORÇAMENTÁRIA ANUAL
A3: ='[1]Metas Cons'!A3:M3 -> ANEXO DE METAS FISCAIS
A4: ESTIMATIVA E COMPENSAÇÃO DA RENÚNCIA DE RECEITA
A5: EXERCÍCIO DE 2024
A7: AMF - Demonstrativo 7 (LRF, art. 4°, § 2°, inciso V) | G7: 1
A8: TRIBUTO | B8: MODALIDADE | C8: SETORES/ PROGRAMAS/ BENEFICIÁRIO | D8: RENÚNCIA DE RECEITA PREVISTA | G8: COMPENSAÇÃO
D10: 2024 | E10: =D10+1 -> 2025 | F10: =E10+1 -> 2026
A11: IPTU | B11: DESCONTO | D11: 85000 | E11: =D11*(1+B23) -> 86615 | F11: =E11*(1+B24) -> 88347.3 | G11: Vide Obsevação
A12: RECUPERAÇÃO FISCAL DÍVIDA ATIVA | B12: RENÚNCIA | D12: =32000+6000+14500+1100+50000+11000+700+10000+2600+2300 -> 130200 | E12: =D12*(1+B24) -> 132804 | F12: =E12*(1+B24) -> 135460.08 | G12: abaixo
E13: =D13*(1+B23) -> 0 | F13: =E13*(1+B24) -> 0
E14: =D14*(1+B23) -> 0 | F14: =E14*(1+B24) -> 0
E15: =D15*(1+B23) -> 0 | F15: =E15*(1+B24) -> 0
E16: =D16*(1+B23) -> 0 | F16: =E16*(1+B24) -> 0
A17: TOTAL | D17: =SUM(D11:D16) -> 215200 | E17: =SUM(E11:E16) -> 219419 | F17: =SUM(F11:F16) -> 223807.38 | G17: -
A19: Obs:
A21: 1 - Os valores da renúncia do IPTU projetados para 2022, foram calculados a partir dos valores projetados para 2021 e apli-
A22: cando-se, sobre eles, as projeções de inflação para os referidos exercícios a saber:
A23: Inflação para 2025: | B23: 0.019
A24: Inflação para 2026: | B24: 0.02
A25: 2- Os valores da renúncia da RECUPERÇÃO FISCAL da Dívida Ativa foram projetados por estimativa de arrecadação.
A45: Adair Philippsen | C45: Simone Diel Kaefer
A46: Prefeito Municipal | C46: Contadora
A47: CPF: 220.674.500-34 | C47: CRC/RS 056.450/0-9

Sheet DOCC(alternativa)
A1: MUNICÍPIO DE SANTO CRISTO
A2: LEI ORÇAMENTÁRIA
A3: ANEXO I - METAS FISCAIS
A4: DEMONSTRATIVO DA MARGEM DE EXPANSÃO DAS DESPESAS OBRIGATÓRIAS DE CARÁTER CONTINUADO
A5: EXERCÍCIO DE 2024
A7: AMF - Demonstrativo IX (LRF, art. 4°, § 2°, inciso V) | B7: 1
A8: EVENTO | B8: Valor Previsto 2024
A9: Aumento Permanente da Receita
A10: Decorrente de Receitas Tributárias
A11: Decorrente de Transferências Correntes
A12: (-) Transferências ao FUNDEB
A13: Saldo Final do Aumento Permanente de Receita (I)
A14: Redução Permanente de Despesa (II)
A15: Margem Bruta (III) = (I+II)
A16: Saldo Utilizado da Margem Bruta (IV)
A17: Impacto de Novas DOCC
A18: Relativas a Pessoal e Encargos Sociais
A19: Relativas a Outras Despesas Correntes
A20: Margem Líquida de Expansão de DOCC (III-IV) | B20: =IF(B15-B16-B17<0,"SEM MARGEM",B15-B16-B17) -> 0
A21: FONTE: Secretaria Municipal da Fazenda
A30: Adair Philippsen | B30: Simone Diel Kaefer
A31: Prefeito Municipal | B31: Contadora
A32: CPF: 220.674.500-34 | B32: CRC/RS 056.450/0-9

Sheet fundo criança
A1: MUNICÍPIO DE SANTO CRISTO
A2: LEI ORÇAMENTÁRIA ANUAL PARA 2024
A3: DEMONSTRATIVO DAS RECEITAS E DESPESAS VINCULADAS AO
A4: FUNDO MUNICIPAL DOS DIREITOS DA CRIANÇA E ADOLESCENTE
A5: (Lei Federal 4.320/64, art 2º par 2º inc I)
A6: RECEITAS PREVISTAS | C6: DESPESAS FIXADAS
A7: Especificação | B7: Valor | C7: Especificação | D7: Valor
A8: RECEITAS CORRENTES | B8: =SUM(B9:B14) -> 35000 | C8: DESPESAS CORRENTES | D8: =SUM(D9:D11) -> 37100
A9: Impostos, Taxas e Contribuição Melhoria | B9: 0 | C9: Pessoal e Encargos Sociais | D9: 0
A10: Receita de Contribuições | B10: 0 | C10: Juros e Encargos da Dívida | D10: 0
A11: Receita Patrimonial | B11: 9000 | C11: Outras Despesas Correntes | D11: 37100
A12: Receita de Serviços | B12: 0 | C12: DESPESAS DE CAPITAL | D12: 0
A13: Transferências Correntes | B13: 26000 | C13: Investimentos | D13: 0
A14: Outras Receitas Correntes | B14: 0 | C14: Amortização da Dívida | D14: 0
A15: OPER. INTRA-ORÇ. CORRENTES | B15: =B16 -> 0
A16: Contribuições Previd. do RPPS | B16: 0
A17: RECEITA DE CAPITAL | B17: 0
A18: Operações de Crédito | B18: 0 | C18: Reserva de Contingência | D18: 0
A19: Alienação de Bens | B19: 0
A20: Transferências de Capital | B20: 0
A21: Outras Receitas de Capital | B21: 0
A22: Aportes Financeiros próprio ao Fundo | B22: 2000
A23: Outros recursos vinculados | B23: 100
A24: TOTAL | B24: =B8+B15+B22+B23 -> 37100 | C24: TOTAL | D24: =D8+D18 -> 37100
A29: Adair Philippsen | B29: Simone Diel Kaefer
A30: Prefeito Municipal | B30: Contadora
A31: CPF: 220.674.500-34 | B31: CRC/RS 056.450/0-9

Sheet FUNDO DEFESA CIVIL
A2: MUNICÍPIO DE SANTO CRISTO
A3: LEI ORÇAMENTÁRIA ANUAL PARA 2024
A4: DEMONSTRATIVO DAS RECEITAS E DESPESAS VINCULADAS AO
A5: FUNDO MUNICIPAL DA DEFESA CIVIL
A6: (Lei Federal 4.320/64, art 2º par 2º inc I)
A7: RECEITAS PREVISTAS | C7: DESPESAS FIXADAS
A8: Especificação | B8: Valor | C8: Especificação | D8: Valor
A9: RECEITAS CORRENTES | B9: =SUM(B10:B15) -> 0 | C9: DESPESAS CORRENTES | D9: =SUM(D10:D12) -> 37000
A10: Impostos, Taxas e Contribuição Melhoria | B10: 0 | C10: Pessoal e Encargos Sociais | D10: 0
A11: Receita de Contribuições | B11: 0 | C11: Juros e Encargos da Dívida | D11: 0
A12: Receita Patrimonial | B12: 0 | C12: Outras Despesas Correntes | D12: 37000
A13: Receita de Serviços | B13: 0 | C13: DESPESAS DE CAPITAL | D13: 0
A14: Transferências Correntes | B14: 0 | C14: Investimentos | D14: 5000
A15: Outras Receitas Correntes | B15: 0 | C15: Amortização da Dívida | D15: 0
A16: OPER. INTRA-ORÇ. CORRENTES | B16: =B17 -> 0
A17: Contribuições Previd. do RPPS | B17: 0
A18: RECEITA DE CAPITAL | B18: 0
A19: Operações de Crédito | B19: 0 | C19: Reserva de Contingência | D19: 0
A20: Alienação de Bens | B20: 0
A21: Transferências de Capital | B21: 0
A22: Outras Receitas de Capital | B22: 0
A23: Aportes Financeiros próprio ao Fundo | B23: 42000
A24: TOTAL | B24: =B9+B16+B23 -> 42000 | C24: TOTAL | D24: =D9+D19+D14 -> 42000
A29: Adair Philippsen | C29: Simone Diel Kaefer
A30: Prefeito Municipal | C30: Contadora
A31: CPF: 220.674.500-34 | C31: CRC/RS 056.450/0-9

Sheet fundo desenv rural
A2: MUNICÍPIO DE SANTO CRISTO
A3: LEI ORÇAMENTÁRIA ANUAL PARA 2024
A4: DEMONSTRATIVO DAS RECEITAS E DESPESAS VINCULADAS AO
A5: FUNDO MUNICIPAL DE DESENVOLVIMENTO RURAL
A6: (Lei Federal 4.320/64, art 2º par 2º inc I)
A7: RECEITAS PREVISTAS | C7: DESPESAS FIXADAS
A8: Especificação | B8: Valor | C8: Especificação | D8: Valor
A9: RECEITAS CORRENTES | B9: =SUM(B10:B15) -> 3000 | C9: DESPESAS CORRENTES | D9: =SUM(D10:D12) -> 0
A10: Impostos, Taxas e Contribuição Melhoria | B10: 0 | C10: Pessoal e Encargos Sociais | D10: 0
A11: Receita de Contribuições | B11: 0 | C11: Juros e Encargos da Dívida | D11: 0
A12: Receita Patrimonial | B12: 3000 | C12: Outras Despesas Correntes | D12: 0
A13: Receita de Serviços | B13: 0 | C13: DESPESAS DE CAPITAL | D13: =D14+D16 -> 303000
A14: Transferências Correntes | B14: 0 | C14: Investimentos | D14: 0
A15: Outras Receitas Correntes | B15: 0 | C15: Amortização da Dívida | D15: 0
A16: OPER. INTRA-ORÇ. CORRENTES | B16: =B17 -> 0 | C16: Concessão de Emprestimos e financiamentos | D16: 303000
A17: Contribuições Previd. do RPPS | B17: 0
A18: RECEITA DE CAPITAL | B18: =SUM(B19:B23) -> 302300
A19: Operações de Crédito | B19: 0 | C19: Reserva de Contingência | D19: 0
A20: Alienação de Bens | B20: 0
A21: Transferências de Capital | B21: 0
A22: Amortização de Empréstimos | B22: 302300
A23: Outras Receitas de Capital | B23: 0
A24: Aportes Financeiros próprio ao Fundo | B24: 0
A25: Outras Fontes | B25: 0
A26: Deduções da Receita | B26: -2300
A27: TOTAL | B27: =B9+B18+B24+B25+B26 -> 303000 | C27: TOTAL | D27: =D9+D13 -> 303000
A31: Adair Philippsen | C31: Simone Diel Kaefer
A32: Prefeito Municipal | C32: Contadora
A33: CPF: 220.674.500-34 | C33: CRC/RS 056.450/0-9

Sheet FUNDEMA
A2: MUNICÍPIO DE SANTO CRISTO
A3: LEI ORÇAMENTÁRIA ANUAL PARA 2024
A4: DEMONSTRATIVO DAS RECEITAS E DESPESAS VINCULADAS AO
A5: FUNDO MUNICIPAL DO MEIO AMBIENTE-FUNDEMA
A6: (Lei Federal 4.320/64, art 2º par 2º inc I)
A7: RECEITAS PREVISTAS | C7: DESPESAS FIXADAS
A8: Especificação | B8: Valor | C8: Especificação | D8: Valor
A9: RECEITAS CORRENTES | B9: =SUM(B10:B15) -> 105000 | C9: DESPESAS CORRENTES | D9: =SUM(D10:D12) -> 118000
A10: Impostos, Taxas e Contribuição Melhoria | B10: 75000 | C10: Pessoal e Encargos Sociais | D10: 74500
A11: Receita de Contribuições | B11: 0 | C11: Juros e Encargos da Dívida | D11: 0
A12: Receita Patrimonial | B12: 5000 | C12: Outras Despesas Correntes | D12: 43500
A13: Receita de Serviços | B13: 0 | C13: DESPESAS DE CAPITAL | D13: =D16+D14 -> 0
A14: Transferências Correntes | B14: 0 | C14: Investimentos | D14: 0
A15: Outras Receitas Correntes | B15: 25000 | C15: Amortização da Dívida | D15: 0
A16: OPER. INTRA-ORÇ. CORRENTES | B16: =B17 -> 0 | C16: Concessão de Emprestimos e financiamentos | D16: 0
A17: Contribuições Previd. do RPPS | B17: 0
A18: RECEITA DE CAPITAL | B18: 0
A19: Operações de Crédito | B19: 0 | C19: Reserva de Contingência | D19: 0
A20: Alienação de Bens | B20: 0
A21: Transferências de Capital | B21: 0
A22: Amortização de Empréstimos | B22: 0
A23: Outras Receitas de Capital | B23: 0
A24: Aportes Financeiros próprio ao Fundo | B24: =118000-105000 -> 13000
A25: Outras fontes | B25: 0
A26: TOTAL | B26: =B9+B18+B24+B25 -> 118000 | C26: TOTAL | D26: =D9+D13 -> 118000
A32: Adair Philippsen | C32: Simone Diel Kaefer
A33: Prefeito Municipal | C33: Contadora
A34: CPF: 220.674.500-34 | C34: CRC/RS 056.450/0-9

Sheet FUNDO IDOSO
A2: MUNICÍPIO DE SANTO CRISTO
A3: LEI ORÇAMENTÁRIA ANUAL PARA 2024
A4: DEMONSTRATIVO DAS RECEITAS E DESPESAS VINCULADAS AO
A5: FUNDO MUNICIPAL DO IDOSO
A6: (Lei Federal 4.320/64, art 2º par 2º inc I)
A7: RECEITAS PREVISTAS | C7: DESPESAS FIXADAS
A8: Especificação | B8: Valor | C8: Especificação | D8: Valor
A9: RECEITAS CORRENTES | B9: =SUM(B10:B15) -> 30500 | C9: DESPESAS CORRENTES | D9: =SUM(D10:D12) -> 172000
A10: Receita Tributárias | B10: 0 | C10: Pessoal e Encargos Sociais | D10: 0
A11: Receita de Contribuições | B11: 0 | C11: Juros e Encargos da Dívida | D11: 0
A12: Receita Patrimonial | B12: 13000 | C12: Outras Despesas Correntes | D12: 172000
A13: Receita de Serviços | B13: 0 | C13: DESPESAS DE CAPITAL | D13: =D16+D14 -> 2000
A14: Transferências Correntes | B14: 17500 | C14: Investimentos | D14: 2000
A15: Outras Receitas Correntes | B15: 0 | C15: Amortização da Dívida | D15: 0
A16: OPER. INTRA-ORÇ. CORRENTES | B16: =B17 -> 0 | C16: Concessão de Emprestimos e financiamentos | D16: 0
A17: Contribuições Previd. do RPPS | B17: 0
A18: RECEITA DE CAPITAL | B18: 0
A19: Operações de Crédito | B19: 0 | C19: Reserva de Contingência | D19: 0
A20: Alienação de Bens | B20: 0
A21: Transferências de Capital | B21: 0
A22: Amortização de Empréstimos | B22: 0
A23: Outras Receitas de Capital | B23: 0
A24: Aportes Financeiros próprio ao Fundo | B24: =174000-30500 -> 143500
A25: TOTAL | B25: =B9+B18+B24 -> 174000 | C25: TOTAL | D25: =D9+D13 -> 174000
A31: Adair Philippsen | C31: Simone Diel Kaefer
A32: Prefeito Municipal | C32: Contadora
A33: CPF: 220.674.500-34 | C33: CRC/RS 056.450/0-9

Sheet ASSISTENCIA
A2: MUNICÍPIO DE SANTO CRISTO
A3: LEI ORÇAMENTÁRIA ANUAL PARA 2024
A4: DEMONSTRATIVO DAS RECEITAS E DESPESAS VINCULADAS AO
A5: FUNDO MUNICIPAL DA ASSISTÊNCIA SOCIAL
A6: (Lei Federal 4.320/64, art 2º par 2º inc I)
A7: RECEITAS PREVISTAS | C7: DESPESAS FIXADAS
A8: Especificação | B8: Valor | C8: Especificação | D8: Valor
A9: RECEITAS CORRENTES | B9: =SUM(B10:B15) -> 102950 | C9: DESPESAS CORRENTES | D9: =SUM(D10:D12) -> 967050
A10: Receita Tributárias | B10: 0 | C10: Pessoal e Encargos Sociais | D10: 657100
A11: Receita de Contribuições | B11: 0 | C11: Juros e Encargos da Dívida | D11: 0
A12: Receita Patrimonial | B12: =2000+4000+46000 -> 52000 | C12: Outras Despesas Correntes | D12: 309950
A13: Receita de Serviços | C13: DESPESAS DE CAPITAL | D13: =D16+D14 -> 35600
A14: Transferências Correntes | B14: =15700+35250 -> 50950 | C14: Investimentos | D14: 35600
A15: Outras Receitas Correntes | B15: 0 | C15: Amortização da Dívida | D15: 0
A16: OPER. INTRA-ORÇ. CORRENTES | B16: =B17 -> 0 | C16: Concessão de Emprestimos e financiamentos | D16: 0
A17: Contribuições Previd. do RPPS | B17: 0
A18: RECEITA DE CAPITAL | B18: =SUM(B19:B23) -> 7500
A19: Operações de Crédito | B19: 0 | C19: Reserva de Contingência | D19: 0
A20: Alienação de Bens | B20: 0
A21: Transferências de Capital | B21: 0
A22: Amortização de Empréstimos | B22: 0
A23: Outras Receitas de Capital | B23: =6500+1000 -> 7500
A24: Aportes Financeiros próprio ao Fundo | B24: =1002650-110450 -> 892200
A25: TOTAL | B25: =B9+B18+B24 -> 1002650 | C25: TOTAL | D25: =D9+D13 -> 1002650
A30: Adair Philippsen | C30: Simone Diel Kaefer
A31: Prefeito Municipal | C31: Contadora
A32: CPF: 220.674.500-34 | C32: CRC/RS 056.450/0-9

Sheet Planilha19

Sheet Planilha20

Sheet Planilha21
